fUSD/lending_fUSD_20260111
["ID","MTS","AMOUNT","RATE_DAILY","PERIOD"]
[401366207,1768158646222,-2039.220797,0.00017999,2]
[401366209,1768158646232,-151.0,0.00017999,2]
[401366211,1768158646241,-332.214435,0.00017999,2]
[401366213,1768158646251,-573.970445,0.00017999,2]
[401366215,1768158646260,-573.970445,0.00017999,2]
[401366216,1768158646269,-151.0,0.00017999,2]
[401366217,1768158646279,-573.970445,0.00017999,2]
[401366218,1768158646288,-573.970445,0.00017999,2]
[401366219,1768158646297,-282.912387,0.00017999,2]
[401366220,1768158646306,-282.912387,0.00017999,2]
[401366221,1768158646315,-1965.222408,0.00017999,2]
[401366222,1768158646325,-282.912387,0.00017999,2]
[401366223,1768158646335,-1965.222408,0.00017999,2]
[401366224,1768158646344,-4694.583498,0.00017999,2]
[401366226,1768158646353,-282.912387,0.00017999,2]
[401366228,1768158646363,-1965.222408,0.00017999,2]
[401366230,1768158646374,-4694.583498,0.00017999,2]
[401366232,1768158646384,-1965.222408,0.00017999,2]
[401366234,1768158646394,-4694.583498,0.00017999,2]
[401366237,1768158646403,-921.834081,0.00017999,2]
[401366239,1768158646412,-4694.583498,0.00017999,2]
[401366241,1768158646421,-2235.751841,0.00017999,2]
[401366244,1768158646431,-921.834081,0.00017999,2]
[401366246,1768158646440,-2235.751841,0.00017999,2]
[401366248,1768158646449,-921.834081,0.00017999,2]
[401366250,1768158646459,-1001.36882,0.00017999,2]
[401366252,1768158646468,-2235.751841,0.00017999,2]
[401366254,1768158646478,-921.834081,0.00017999,2]
[401366256,1768158646487,-1001.36882,0.00017999,2]
[401366258,1768158646496,-2235.751841,0.00017999,2]
[401366260,1768158646505,-1001.36882,0.00017999,2]
[401366262,1768158646514,-1001.36882,0.00017999,2]
[401366264,1768158646524,-1765.956881,0.00017999,2]
[401366266,1768158646533,-1765.956881,0.00017999,2]
[401366268,1768158646543,-1765.956881,0.00017999,2]
[401366270,1768158646552,-1765.956881,0.00017999,2]
[401366272,1768158646562,-150.0,0.00018,2]
[401366274,1768158646571,-150.0,0.00018,2]
[401366276,1768158646584,-150.0,0.00018,2]
[401366278,1768158646594,-468.77065485,0.00018,2]
[401366280,1768158646603,-150.0,0.00018,2]
[401366282,1768158646613,-150.0,0.00018,2]
[401366284,1768158646623,-150.0,0.00018,2]
[401366286,1768158646633,-150.0,0.00018,2]
[401366288,1768158646642,-150.0,0.00018,2]
[401366290,1768158646656,-150.0,0.00018,2]
[401366292,1768158646665,-312012.35299681,0.00018,2]
[401366294,1768158646675,-1891496.95366236,0.00018,2]
[401366302,1768158646741,-596.298,0.00018,2]
[401366304,1768158646753,-372.34049029,0.00018,2]
[401366307,1768158646764,-393.66239999,0.00018,2]
[401366335,1768158647015,-1.7e-07,0.00018,2]
[401366341,1768158647059,-1004.95620914,0.00018,2]
[401366343,1768158647070,-19818.71941958,0.00018,2]
[401366504,1768158648686,-500.0,0.00016516,6]
[401366506,1768158648695,-500.0,0.00016571,6]
[401366508,1768158648704,-500.0,0.00016626,6]
[401366510,1768158648713,-500.0,0.0001668,6]
[401366512,1768158648722,-500.0,0.00016735,6]
[401366514,1768158648731,-500.0,0.0001679,6]
[401366516,1768158648741,-75.53795032,0.00016845,6]
[401366543,1768158648979,-286.71293171,0.00016845,6]
[401366604,1768158649534,-137.74911797,0.00016845,6]
[401366606,1768158649543,-500.0,0.000169,6]
[401366608,1768158649552,-37.22266033,0.00016954,6]
[401366610,1768158649567,-462.77733967,0.00016954,6]
[401366612,1768158649579,-500.0,0.00017009,6]
[401366614,1768158649590,-46.37833194,0.00017064,6]
[401366617,1768158649601,-330.15551753,0.00017064,6]
[401366621,1768158649639,-123.46615053,0.00017064,6]
[401366623,1768158649648,-290.46514547,0.00017119,6]
[401366628,1768158649680,-209.53485453,0.00017119,6]
[401366629,1768158649690,-647.9503468,0.00017174,6]
[401366631,1768158649699,-1553.59334167,0.00017675,2]
[401366634,1768158649710,-5001.40665833,0.00017675,2]
[401366636,1768158649720,-1234113.73755635,0.00018,2]
[401366638,1768158649729,-232106.94458483,0.00018,2]
[401366807,1768158902735,347.81,0.00027397,120]
[401366808,1768159198574,-528.99984773,0.00014455,2]
[401366809,1768159200721,-268.97657972,0.00014455,2]
[401366810,1768159203923,-195.0,0.00014455,2]
[401366814,1768159206166,-248.05759627,0.00014455,2]
[401366820,1768159242602,384.61852128,0.0002738,120]
[401366821,1768159309738,20041.4095362,0.000273,120]
[401366822,1768159483642,-162.0570813,0.00014455,2]
[401366823,1768159498022,-31.96089498,0.00014455,2]
[401366824,1768159498047,-131.24910502,0.00014549,2]
[401366825,1768159502366,330.42,0.00027397,120]
[401366826,1768159560161,7049.59447997,8e-05,2]
[401366827,1768159563935,2789.91552003,0.00011,2]
[401366828,1768159563959,6625.55240718,0.00011,2]
[401366831,1768159630081,-333.289531,0.00014476,2]
[401366832,1768159630103,-195.0,0.00014512,2]
[401366833,1768159630125,-46.16466792,0.00014549,2]
[401366834,1768159630147,-85.73857354,0.00014607,2]
[401366835,1768159641070,-109.26142646,0.00014607,2]
[401366836,1768159641090,-269.0,0.00014649,2]
[401366837,1768159641116,-1200.0,0.00014649,2]
[401366838,1768159641136,-243.633,0.0001465,2]
[401366839,1768159641155,-1178.12,0.0001465,2]
[401366840,1768159641174,-300.0,0.00014709,2]
[401366841,1768159641194,-1131.92401938,0.0001471,2]
[401366845,1768159692980,-179.13660126,0.00014129,2]
[401366847,1768159696595,-261.88660126,0.00014129,2]
[401366848,1768159698216,-195.0,0.00014129,2]
[401366849,1768159700669,-275.0,0.00014129,2]
[401366851,1768159702797,-449.4769934,0.00014129,2]
[401366852,1768159705360,-231.83004513,0.00014129,2]
[401366854,1768159708114,-166.66,0.00014129,2]
[401366858,1768159710080,-293.92349696,0.00014129,2]
[401366860,1768159711675,-152.24156188,0.00014129,2]
[401366863,1768159714198,-166.66,0.00014129,2]
[401366864,1768159717634,-302.38711266,0.00014129,2]
[401366865,1768159719198,-290.51148252,0.00014129,2]
[401366866,1768159720607,-158.38171169,0.00014129,2]
[401366867,1768159722695,-166.66,0.00014129,2]
[401366868,1768159724785,-250.0,0.00014129,2]
[401366869,1768159726823,-199.03312016,0.00014129,2]
[401366870,1768159731589,-168.83564335,0.00014129,2]
[401366871,1768159734260,-168.55203038,0.00014129,2]
[401366872,1768159736780,-152.90274,0.00014129,2]
[401366873,1768159747100,-300.0,0.00014128,2]
[401366874,1768159747120,-10820.69085935,0.00014129,2]
[401366875,1768159747140,-6065.45,0.00014129,2]
[401366876,1768159747160,-500.0,0.00014355,2]
[401366877,1768159747184,-276233.99894065,0.00014648,2]
[401366878,1768159757091,-1113.69269021,0.00014648,2]
[401366879,1768159761077,-37141.14838,0.00014648,2]
[401366880,1768159762303,2677.765524,0.00014575,2]
[401366881,1768159762334,-31349.47186,0.00014648,2]
[401366882,1768159764142,1158.71,0.00014167,2]
[401366883,1768159803506,313.9,0.00027397,120]
[401366895,1768159832136,-300.0,0.00014647,2]
[401366897,1768159832147,-1200.0,0.00014647,2]
[401366899,1768159832157,-271.0,0.00014647,2]
[401366901,1768159832167,-150.0,0.00014647,2]
[401366902,1768159832177,-180978.85684158,0.00014648,2]
[401366903,1768159832188,-1749.57634898,0.00014648,2]
[401366905,1768159832201,-39659.75880043,0.00014648,2]
[401367101,1768159838253,-1315.68623605,0.00014648,2]
[401367102,1768159838265,-2490.0029977,0.00014648,2]
[401367281,1768159840429,-1470.41156001,0.00014648,2]
[401367284,1768159840442,-1395.55214,0.00014648,2]
[401367286,1768159840454,-1654.83784661,0.00014648,2]
[401367288,1768159840466,-2500.94388863,0.00014648,2]
[401367297,1768159840536,-1446.42047512,0.00014648,2]
[401367299,1768159840548,-419499.64099403,0.00014648,2]
[401367301,1768159840558,-6154.1931,0.0001465,2]
[401367303,1768159840567,-280.57,0.0001465,2]
[401367305,1768159840577,-167.73428703,0.00014709,2]
[401367307,1768159840586,-422.98578664,0.00014709,2]
[401367309,1768159840596,-344.38060986,0.00014709,2]
[401367311,1768159840606,-500.0,0.00014709,2]
[401367314,1768159840615,-500.0,0.00014709,2]
[401367316,1768159840625,-500.0,0.00014709,2]
[401367318,1768159840634,-500.0,0.00014709,2]
[401367319,1768159840643,-500.0,0.00014709,2]
[401367321,1768159840652,-500.0,0.00014709,2]
[401367323,1768159840662,-500.0,0.00014709,2]
[401367325,1768159840671,-500.0,0.00014709,2]
[401367327,1768159840680,-500.0,0.00014709,2]
[401367329,1768159840689,-367.89101168,0.00014709,2]
[401367332,1768159840699,-500.0,0.00014709,2]
[401367334,1768159840708,-500.0,0.00014709,2]
[401367335,1768159840718,-500.0,0.00014709,2]
[401367337,1768159840727,-500.0,0.00014709,2]
[401367340,1768159840737,-500.0,0.00014709,2]
[401367342,1768159840746,-500.0,0.00014709,2]
[401367344,1768159840755,-500.0,0.00014709,2]
[401367346,1768159840766,-500.0,0.00014709,2]
[401367348,1768159840775,-500.0,0.00014709,2]
[401367350,1768159840784,-500.0,0.00014709,2]
[401367352,1768159840794,-500.0,0.00014709,2]
[401367354,1768159840803,-500.0,0.00014709,2]
[401367355,1768159840812,-500.0,0.00014709,2]
[401367357,1768159840821,-500.0,0.00014709,2]
[401367358,1768159840830,-500.0,0.00014709,2]
[401367359,1768159840839,-500.0,0.00014709,2]
[401367360,1768159840848,-500.0,0.00014709,2]
[401367361,1768159840857,-500.0,0.00014709,2]
[401367362,1768159840866,-500.0,0.00014709,2]
[401367363,1768159840875,-358.26910512,0.00014709,2]
[401367364,1768159840884,-500.0,0.00014709,2]
[401367365,1768159840893,-500.0,0.00014709,2]
[401367366,1768159840902,-500.0,0.00014709,2]
[401367368,1768159840912,-500.0,0.00014709,2]
[401367370,1768159840921,-500.0,0.00014709,2]
[401367372,1768159840930,-500.0,0.00014709,2]
[401367374,1768159840939,-500.0,0.00014709,2]
[401367376,1768159840949,-500.0,0.00014709,2]
[401367378,1768159840961,-500.0,0.00014709,2]
[401367380,1768159840970,-500.0,0.00014709,2]
[401367382,1768159840980,-500.0,0.00014709,2]
[401367384,1768159840989,-14914.92833257,0.0001471,2]
[401367386,1768159841000,-500.0,0.0001471,2]
[401367388,1768159841010,-200.0,0.00014741,2]
[401367390,1768159841019,-200.0,0.00014741,2]
[401367392,1768159841029,-500.0,0.00014741,2]
[401367394,1768159841039,-1589.41,0.00014749,2]
[401367396,1768159841048,-500.0,0.00014749,2]
[401367398,1768159841058,-500.0,0.00014749,2]
[401367400,1768159841067,-500.0,0.00014749,2]
[401367402,1768159841076,-500.0,0.00014749,2]
[401367404,1768159841085,-500.0,0.00014749,2]
[401367406,1768159841095,-399.8886569,0.00014749,2]
[401367408,1768159841104,-188.56264617,0.00014749,2]
[401367410,1768159841113,-334.10877893,0.0001475,2]
[401367412,1768159841122,-18600.0,0.000148,5]
[401367414,1768159841132,-200.0,0.0001481,2]
[401367416,1768159841142,-1000.0,0.0001485,2]
[401367418,1768159841151,-37200.0,0.000149,5]
[401367420,1768159841161,-500.0,0.00014949,2]
[401367422,1768159841170,-500.0,0.00014949,2]
[401367424,1768159841179,-500.0,0.00014949,2]
[401367426,1768159841189,-386.65632401,0.00014949,2]
[401367428,1768159841198,-505.19604421,0.00014949,2]
[401367430,1768159841207,-500.0,0.00014949,2]
[401367432,1768159841217,-500.0,0.00014949,2]
[401367434,1768159841226,-500.0,0.00014949,2]
[401367436,1768159841235,-500.0,0.00014949,2]
[401367438,1768159841246,-500.0,0.00014949,2]
[401367440,1768159841256,-500.0,0.00014949,2]
[401367442,1768159841265,-174.1373823,0.00014949,2]
[401367444,1768159841275,-500.0,0.00014949,2]
[401367446,1768159841284,-500.0,0.00014949,2]
[401367448,1768159841292,-500.0,0.00014949,2]
[401367450,1768159841301,-500.0,0.00014949,2]
[401367452,1768159841311,-500.0,0.00014949,2]
[401367454,1768159841320,-500.0,0.00014949,2]
[401367456,1768159841330,-500.0,0.00014949,2]
[401367458,1768159841340,-500.0,0.00014949,2]
[401367460,1768159841349,-3240.0,0.00014978,2]
[401367462,1768159841358,-500.0,0.00014984,2]
[401367464,1768159841368,-7726.24,0.00015013,2]
[401367466,1768159841377,-1589.41,0.00015023,2]
[401367468,1768159841386,-14914.92833255,0.00015064,2]
[401367471,1768159841396,-917.1,0.00015251,2]
[401367472,1768159841405,-344.92232126,0.00015257,2]
[401367474,1768159841415,-500.0,0.00015258,2]
[401367476,1768159841424,-334.10877891,0.00015275,2]
[401367478,1768159841433,-1589.41,0.00015297,2]
[401367480,1768159841443,-955.94,0.0001531,2]
[401367482,1768159841452,-299.99,0.0001531,2]
[401367484,1768159841461,-150.99,0.0001531,2]
[401367486,1768159841471,-9999.99,0.0001531,2]
[401367488,1768159841480,-124124.28958676,0.0001532,2]
[401367490,1768159841490,-18462.87898371,0.00015357,2]
[401367492,1768159841500,-3175.55161725,0.00015366,2]
[401367494,1768159841511,-14914.92833255,0.00015419,2]
[401367496,1768159841520,-250.0,0.00015514,2]
[401367498,1768159841529,-500.0,0.00015532,2]
[401367500,1768159841538,-195.0,0.00015541,2]
[401367502,1768159841548,-1589.41,0.00015571,2]
[401367505,1768159841560,-664.28,0.00015586,2]
[401367507,1768159841572,-189.72,0.00015624,2]
[401367509,1768159841582,-14914.92833255,0.00015773,2]
[401367511,1768159841591,-255.0,0.00015775,2]
[401367513,1768159841600,-334.10877891,0.000158,2]
[401367515,1768159841609,-500.0,0.00015806,2]
[401367517,1768159841619,-1589.41,0.00015845,2]
[401367519,1768159841628,-195.0,0.00015923,2]
[401367521,1768159841637,-23777.71478629,0.00016,2]
[401367523,1768159841647,-371.10670881,0.00016004,2]
[401367525,1768159841656,-300.0,0.00016004,2]
[401367527,1768159841665,-1862.70122449,0.00016004,2]
[401367528,1768159841674,-600.0,0.00016004,2]
[401367530,1768159841683,-200.0,0.00016029,2]
[401367532,1768159841692,-420.0,0.00016036,2]
[401367534,1768159841701,-158.55612686,0.0001608,2]
[401367536,1768159841711,-1680.0,0.00016112,2]
[401367538,1768159841720,-291.02320252,0.00016113,2]
[401367540,1768159841729,-9999.99,0.00016116,2]
[401367542,1768159841739,-1589.41,0.00016119,2]
[401367545,1768159841749,-14914.92833255,0.00016128,2]
[401367547,1768159841759,-344.92232124,0.00016179,2]
[401367549,1768159841769,-150.0,0.000162,2]
[401367551,1768159841779,-150.0,0.000162,2]
[401367552,1768159841788,-150.0,0.000162,2]
[401367555,1768159841799,-468.77065485,0.000162,2]
[401367557,1768159841808,-150.0,0.000162,2]
[401367559,1768159841818,-150.0,0.000162,2]
[401367561,1768159841828,-150.0,0.000162,2]
[401367562,1768159841838,-150.0,0.000162,2]
[401367565,1768159841847,-150.0,0.000162,2]
[401367567,1768159841857,-150.0,0.000162,2]
[401367569,1768159841866,-150.0,0.000162,2]
[401367571,1768159841876,-150.0,0.000162,2]
[401367572,1768159841887,-150.0,0.000162,2]
[401367574,1768159841899,-150.0,0.000162,2]
[401367577,1768159841908,-150.0,0.000162,2]
[401367578,1768159841917,-468.77065485,0.00016218,2]
[401367581,1768159841927,-653.44022965,0.00016221,2]
[401367582,1768159841936,-468.77065485,0.00016236,2]
[401367585,1768159841946,-468.77065485,0.00016255,2]
[401367587,1768159841955,-468.77065485,0.00016273,2]
[401367589,1768159841968,-468.77065485,0.00016291,2]
[401367591,1768159841977,-468.77065485,0.00016309,2]
[401367593,1768159841986,-334.10877891,0.00016325,2]
[401367594,1768159841995,-468.77065485,0.00016327,2]
[401367596,1768159842006,-150.0,0.00016338,2]
[401367598,1768159842015,-468.77065485,0.00016345,2]
[401367600,1768159842024,-150.0,0.00016364,2]
[401367602,1768159842035,-150.0,0.00016364,2]
[401367604,1768159842045,-468.77065485,0.00016364,2]
[401367606,1768159842054,-468.77065485,0.00016382,2]
[401367608,1768159842063,-1589.41,0.00016393,2]
[401367610,1768159842072,-468.77065485,0.000164,2]
[401367612,1768159842082,-150.0,0.000164,2]
[401367614,1768159842091,-500.0,0.00016411,2]
[401367616,1768159842101,-468.77065485,0.00016418,2]
[401367618,1768159842110,-468.77065485,0.00016436,2]
[401367620,1768159842119,-265.78504267,0.00016438,2]
[401367622,1768159842128,-226.62,0.00016438,2]
[401367624,1768159842137,-600.0,0.00016438,2]
[401367626,1768159842147,-16526.13,0.00016438,2]
[401367628,1768159842156,-888.0,0.00016438,2]
[401367630,1768159842166,-800.0,0.00016438,2]
[401367632,1768159842175,-188.46718757,0.00016438,2]
[401367634,1768159842184,-468.77065485,0.00016455,2]
[401367636,1768159842193,-150.0,0.00016457,2]
[401367638,1768159842203,-150.0,0.00016457,2]
[401367640,1768159842212,-468.77065485,0.00016473,2]
[401367642,1768159842222,-420.15173497,0.00016475,2]
[401367644,1768159842231,-150.0,0.00016477,2]
[401367646,1768159842240,-14914.92833255,0.00016482,2]
[401367648,1768159842250,-468.77065485,0.00016491,2]
[401367650,1768159842260,-150.0,0.000165,2]
[401367652,1768159842269,-468.77065485,0.00016509,2]
[401367654,1768159842278,-150.0,0.00016527,2]
[401367656,1768159842287,-150.0,0.00016527,2]
[401367658,1768159842297,-468.77065485,0.00016527,2]
[401367660,1768159842306,-500.0,0.00016544,2]
[401367662,1768159842316,-193.74886277,0.00016544,2]
[401367664,1768159842326,-468.77065485,0.00016545,2]
[401367667,1768159842338,-150.0,0.0001656,2]
[401367669,1768159842347,-468.77065485,0.00016564,2]
[401367671,1768159842356,-468.77065485,0.00016582,2]
[401367673,1768159842366,-468.77065485,0.000166,2]
[401367675,1768159842375,-150.0,0.000166,2]
[401367677,1768159842384,-1413.99,0.000166,2]
[401367679,1768159842393,-150.0,0.00016615,2]
[401367681,1768159842403,-468.77065485,0.00016618,2]
[401367684,1768159842421,-468.77065485,0.00016636,2]
[401367686,1768159842434,-468.77065485,0.00016655,2]
[401367688,1768159842443,-1589.41,0.00016667,2]
[401367690,1768159842452,-468.77065485,0.00016673,2]
[401367692,1768159842462,-150.0,0.00016691,2]
[401367694,1768159842471,-150.0,0.00016691,2]
[401367696,1768159842481,-468.77065485,0.00016691,2]
[401367698,1768159842490,-468.77065485,0.00016709,2]
[401367700,1768159842500,-150.0,0.00016714,2]
[401367702,1768159842511,-150.0,0.00016714,2]
[401367704,1768159842520,-468.77065485,0.00016727,2]
[401367706,1768159842530,-468.77065485,0.00016745,2]
[401367708,1768159842540,-150.0,0.00016754,2]
[401367710,1768159842549,-468.77065485,0.00016764,2]
[401367712,1768159842559,-468.77065485,0.00016782,2]
[401367714,1768159842568,-936.49962306,0.0001679,2]
[401367716,1768159842577,-150.0,0.000168,2]
[401367718,1768159842587,-468.77065485,0.000168,2]
[401367720,1768159842596,-150.0,0.000168,2]
[401367722,1768159842605,-175775.17862475,0.000168,2]
[401367724,1768159842615,-468.77065485,0.00016818,2]
[401367726,1768159842624,-468.77065485,0.00016836,2]
[401367756,1768159842987,-14914.92833255,0.00016837,2]
[401367759,1768159842997,-334.10877891,0.0001685,2]
[401367761,1768159843007,-150.0,0.00016855,2]
[401367763,1768159843018,-150.0,0.00016855,2]
[401367766,1768159843027,-468.77065485,0.00016855,2]
[401367768,1768159843038,-468.77065485,0.00016873,2]
[401367770,1768159843047,-468.77065485,0.00016891,2]
[401367773,1768159843057,-150.0,0.00016892,2]
[401367775,1768159843067,-415.1732756,0.00016899,2]
[401367777,1768159843076,-150.0,0.00016899,6]
[401367779,1768159843084,-150.0,0.00016899,6]
[401367781,1768159843093,-150.0,0.00016899,2]
[401367783,1768159843103,-200.0,0.00016899,6]
[401367785,1768159843112,-150.0,0.00016899,6]
[401367787,1768159843121,-468.77065485,0.00016909,2]
[401367789,1768159843130,-150.0,0.0001692,2]
[401367791,1768159843140,-468.77065485,0.00016927,2]
[401367793,1768159843150,-1589.41,0.00016941,2]
[401367795,1768159843160,-468.77065485,0.00016945,2]
[401367797,1768159843170,-150.0,0.00016954,6]
[401367799,1768159843179,-200.0,0.00016954,6]
[401367801,1768159843189,-150.0,0.00016954,2]
[401367803,1768159843198,-664.28,0.00016956,2]
[401367805,1768159843207,-468.77065485,0.00016964,2]
[401367807,1768159843216,-150.0,0.00016971,2]
[401367809,1768159843225,-150.0,0.00016971,2]
[401367811,1768159843234,-468.77065485,0.00016982,2]
[401367813,1768159843244,-200.0,0.00016986,2]
[401367815,1768159843252,-433.0,0.00016991,2]
[401367817,1768159843262,-468.77065485,0.00017,2]
[401367819,1768159843271,-150.0,0.00017,2]
[401367821,1768159843280,-250.0,0.00017,2]
[401367823,1768159843290,-3556.92298458,0.00017,2]
[401367825,1768159843299,-160.0,0.00017,2]
[401367827,1768159843308,-150.0,0.00017009,6]
[401367828,1768159843318,-189.72,0.00017015,2]
[401367830,1768159843328,-150.0,0.00017018,2]
[401367832,1768159843337,-150.0,0.00017018,2]
[401367835,1768159843349,-468.77065485,0.00017018,2]
[401367837,1768159843358,-150.0,0.00017031,2]
[401367839,1768159843368,-468.77065485,0.00017036,2]
[401367841,1768159843378,-468.77065485,0.00017055,2]
[401367843,1768159843388,-150.0,0.00017063,6]
[401367845,1768159843398,-500.0,0.00017073,2]
[401367847,1768159843407,-500.0,0.00017073,2]
[401367849,1768159843420,-500.0,0.00017073,2]
[401367851,1768159843430,-500.0,0.00017073,2]
[401367853,1768159843439,-500.0,0.00017073,2]
[401367855,1768159843451,-500.0,0.00017073,2]
[401367858,1768159843461,-500.0,0.00017073,2]
[401367861,1768159843471,-500.0,0.00017073,2]
[401367863,1768159843482,-500.45639995,0.00017073,2]
[401367865,1768159843492,-500.0,0.00017073,2]
[401367867,1768159843503,-500.0,0.00017073,2]
[401367870,1768159843514,-500.0,0.00017073,2]
[401367872,1768159843524,-500.0,0.00017073,2]
[401367874,1768159843533,-500.0,0.00017073,2]
[401367876,1768159843542,-632.9385196,0.00017073,2]
[401367878,1768159843552,-646.79718152,0.00017073,2]
[401367880,1768159843562,-500.0,0.00017073,2]
[401367882,1768159843571,-500.0,0.00017073,2]
[401367884,1768159843581,-500.0,0.00017073,2]
[401367886,1768159843590,-500.0,0.00017073,2]
[401367888,1768159843599,-368.2931148,0.00017073,2]
[401367890,1768159843608,-500.0,0.00017073,2]
[401367892,1768159843617,-500.0,0.00017073,2]
[401367894,1768159843627,-439.76863979,0.00017073,2]
[401367896,1768159843636,-500.0,0.00017073,2]
[401367898,1768159843645,-500.99700202,0.00017073,2]
[401367900,1768159843655,-500.0,0.00017073,2]
[401367902,1768159843665,-500.0,0.00017073,2]
[401367904,1768159843674,-500.0,0.00017073,2]
[401367906,1768159843684,-500.0,0.00017073,2]
[401367908,1768159843694,-468.77065485,0.00017073,2]
[401367910,1768159843703,-468.77065485,0.00017091,2]
[401367912,1768159843714,-620.0,0.00017099,2]
[401367914,1768159843723,-322.6107,0.00017099,2]
[401367916,1768159843733,-651.90523038,0.00017099,2]
[401367918,1768159843742,-500.0,0.00017099,2]
[401367920,1768159843751,-260.89005731,0.00017099,2]
[401367922,1768159843761,-553.64373807,0.00017099,2]
[401367924,1768159843770,-500.0,0.00017099,2]
[401367926,1768159843780,-500.0,0.00017099,2]
[401367928,1768159843789,-500.0,0.00017099,2]
[401367930,1768159843799,-238.92822807,0.00017099,2]
[401367933,1768159843813,-250.0,0.00017099,2]
[401367935,1768159843823,-250.0,0.00017099,2]
[401367937,1768159843835,-250.0,0.00017099,2]
[401367939,1768159843845,-250.0,0.00017099,2]
[401367941,1768159843855,-250.0,0.00017099,2]
[401367943,1768159843864,-1000.0,0.00017099,2]
[401367945,1768159843874,-250.0,0.00017099,2]
[401367947,1768159843883,-1000.0,0.00017099,2]
[401367949,1768159843893,-250.0,0.00017099,2]
[401367952,1768159843903,-1000.0,0.00017099,2]
[401367954,1768159843914,-250.0,0.00017099,2]
[401367956,1768159843923,-1000.0,0.00017099,2]
[401367958,1768159843933,-250.0,0.00017099,2]
[401367960,1768159843942,-1000.0,0.00017099,2]
[401367962,1768159843952,-250.0,0.00017099,2]
[401367964,1768159843964,-1000.0,0.00017099,2]
[401367966,1768159843974,-250.0,0.00017099,2]
[401367968,1768159843984,-1000.0,0.00017099,2]
[401367970,1768159843994,-250.0,0.00017099,2]
[401367972,1768159844003,-1000.0,0.00017099,2]
[401367974,1768159844013,-1000.0,0.00017099,2]
[401367976,1768159844023,-1000.0,0.00017099,2]
[401367978,1768159844032,-998.0,0.00017099,2]
[401367981,1768159844043,-1000.0,0.00017099,2]
[401367983,1768159844053,-1000.0,0.00017099,2]
[401367985,1768159844063,-578.20924308,0.00017099,2]
[401367987,1768159844073,-250.0,0.00017099,2]
[401367989,1768159844083,-250.0,0.00017099,2]
[401367992,1768159844093,-150.0,0.000171,2]
[401367995,1768159844102,-344.92232124,0.000171,2]
[401367997,1768159844112,-468.77065485,0.00017109,2]
[401367999,1768159844121,-150.0,0.00017118,6]
[401368001,1768159844131,-1089.8409,0.00017122,2]
[401368003,1768159844140,-468.77065485,0.00017127,2]
[401368005,1768159844150,-468.77065485,0.00017145,2]
[401368007,1768159844159,-468.77065485,0.00017164,2]
[401368009,1768159844168,-150.0,0.00017169,2]
[401368011,1768159844178,-184.43767644,0.00017173,6]
[401368013,1768159844188,-150.0,0.00017182,2]
[401368015,1768159844198,-150.0,0.00017182,2]
[401368017,1768159844207,-468.77065485,0.00017182,2]
[401368019,1768159844217,-14914.92833255,0.00017191,2]
[401368021,1768159844226,-468.77065485,0.000172,2]
[401368023,1768159844235,-150.0,0.000172,2]
[401368025,1768159844245,-55900.0,0.000172,6]
[401368027,1768159844256,-1589.41,0.00017215,2]
[401368029,1768159844266,-468.77065485,0.00017218,2]
[401368031,1768159844276,-150.0,0.00017229,2]
[401368033,1768159844285,-150.0,0.00017229,2]
[401368035,1768159844295,-468.77065485,0.00017236,2]
[401368037,1768159844305,-468.77065485,0.00017255,2]